[Event "Titled Tuesday Blitz March 14 Early 2023"]
[White "Begunov, Konstantin"]
[Black "Zaichenko, Daria"]
[WhiteFideId "4118510"]
[BlackFideId "4197453"]
[WhiteElo "2079"]
[BlackElo "2039"]
[Result "1-0"]
[Round "06"]
[TimeControl "180+2"]
[Date "2023.03.14"]
[WhiteClock "0:00:22"]
[BlackClock "0:00:21"]

1. d4 {[%clk 0:03:00]}  d5 {[%clk 0:02:59]} 2. c4 {[%clk 0:03:01]}  e6 {[%clk 0:02:59]} 3. Nc3 {[%clk 0:03:00]}  Be7 {[%clk 0:02:58]} 4. cxd5 {[%clk 0:02:59]}  exd5 {[%clk 0:02:58]} 5. Nf3 {[%clk 0:03:00]}  c6 {[%clk 0:02:56]} 6. Qc2 {[%clk 0:02:59]}  Nf6 {[%clk 0:02:54]} 7. Bg5 {[%clk 0:02:58]}  g6 {[%clk 0:02:46]} 8. e3 {[%clk 0:02:45]}  O-O {[%clk 0:02:15]} 9. Bd3 {[%clk 0:02:45]}  Na6 {[%clk 0:02:07]} 10. Bxa6 {[%clk 0:02:43]}  bxa6 {[%clk 0:02:07]} 11. O-O {[%clk 0:02:43]}  Bf5 {[%clk 0:02:06]} 12. Qe2 {[%clk 0:02:41]}  Ne4 {[%clk 0:02:05]} 13. Bxe7 {[%clk 0:02:37]}  Nxc3 {[%clk 0:01:58]} 14. Qe1 {[%clk 0:02:21]}  Qxe7 {[%clk 0:01:55]} 15. Qxc3 {[%clk 0:02:21]}  Rac8 {[%clk 0:01:54]} 16. Rfc1 {[%clk 0:02:15]}  Be4 {[%clk 0:01:46]} 17. Nd2 {[%clk 0:01:53]}  Bf5 {[%clk 0:01:36]} 18. Qa5 {[%clk 0:01:49]}  Qb7 {[%clk 0:01:32]} 19. Nb3 {[%clk 0:01:38]}  Qb5 {[%clk 0:01:29]} 20. Qd2 {[%clk 0:01:30]}  Rb8 {[%clk 0:01:22]} 21. Rc5 {[%clk 0:01:29]}  Qb7 {[%clk 0:01:22]} 22. Rac1 {[%clk 0:01:28]}  Bd7 {[%clk 0:01:18]} 23. R1c2 {[%clk 0:01:24]}  Rfc8 {[%clk 0:01:10]} 24. Na5 {[%clk 0:01:23]}  Qb6 {[%clk 0:01:10]} 25. b3 {[%clk 0:01:19]}  Rc7 {[%clk 0:01:08]} 26. Qc1 {[%clk 0:01:07]}  Rbc8 {[%clk 0:01:04]} 27. h3 {[%clk 0:01:07]}  Kg7 {[%clk 0:01:03]} 28. Qd2 {[%clk 0:00:57]}  Bf5 {[%clk 0:00:59]} 29. Rc1 {[%clk 0:00:56]}  Bd7 {[%clk 0:00:59]} 30. Qc3 {[%clk 0:00:55]}  h5 {[%clk 0:00:49]} 31. e4 {[%clk 0:00:37]}  dxe4 {[%clk 0:00:38]} 32. d5+ {[%clk 0:00:37]}  Kh7 {[%clk 0:00:36]} 33. d6 {[%clk 0:00:37]}  Rb7 {[%clk 0:00:34]} 34. Nxb7 {[%clk 0:00:37]}  Qxb7 {[%clk 0:00:34]} 35. Qe5 {[%clk 0:00:34]}  Qb4 {[%clk 0:00:31]} 36. Qe7 {[%clk 0:00:31]}  Be6 {[%clk 0:00:27]} 37. d7 {[%clk 0:00:31]}  Rc7 {[%clk 0:00:26]} 38. d8=Q {[%clk 0:00:30]}  Rxe7 {[%clk 0:00:27]} 39. Qxe7 {[%clk 0:00:30]}  Qd2 {[%clk 0:00:26]} 40. R5c2 {[%clk 0:00:24]}  Qd5 {[%clk 0:00:25]} 41. Qf6 {[%clk 0:00:23]}  a5 {[%clk 0:00:21]} 42. Rxc6 {[%clk 0:00:22]} 1-0


[Site "https://www.chess.com"]

[Event "Titled Tuesday Blitz March 14 Early 2023"]
[White "Rosenberg, Evan S"]
[Black "Fajdetic, Hrvoje"]
[WhiteFideId "2019299"]
[BlackFideId "14501945"]
[WhiteElo "2404"]
[BlackElo "2185"]
[Result "0-1"]
[Round "06"]
[TimeControl "180+2"]
[Date "2023.03.14"]
[WhiteClock "0:00:02"]
[BlackClock "0:00:31"]

1. d4 {[%clk 0:03:00]}  e6 {[%clk 0:02:51]} 2. Nf3 {[%clk 0:03:00]}  f5 {[%clk 0:02:52]} 3. g3 {[%clk 0:02:58]}  Nf6 {[%clk 0:02:52]} 4. c4 {[%clk 0:02:57]}  d5 {[%clk 0:02:52]} 5. Nc3 {[%clk 0:02:57]}  c6 {[%clk 0:02:53]} 6. Bg2 {[%clk 0:02:56]}  Bd6 {[%clk 0:02:53]} 7. Bf4 {[%clk 0:02:55]}  O-O {[%clk 0:02:52]} 8. Bxd6 {[%clk 0:02:55]}  Qxd6 {[%clk 0:02:53]} 9. O-O {[%clk 0:02:52]}  Ne4 {[%clk 0:02:53]} 10. Qc2 {[%clk 0:02:50]}  b6 {[%clk 0:02:53]} 11. Ne5 {[%clk 0:02:45]}  Bb7 {[%clk 0:02:53]} 12. f3 {[%clk 0:02:44]}  Nxc3 {[%clk 0:02:48]} 13. Qxc3 {[%clk 0:02:44]}  Nd7 {[%clk 0:02:48]} 14. Nd3 {[%clk 0:01:55]}  Rac8 {[%clk 0:02:39]} 15. b4 {[%clk 0:01:30]}  dxc4 {[%clk 0:02:23]} 16. Qxc4 {[%clk 0:01:29]}  c5 {[%clk 0:02:24]} 17. dxc5 {[%clk 0:01:13]}  bxc5 {[%clk 0:02:24]} 18. bxc5 {[%clk 0:01:12]}  Nxc5 {[%clk 0:02:22]} 19. Nxc5 {[%clk 0:01:11]}  Rxc5 {[%clk 0:02:13]} 20. Qb3 {[%clk 0:01:10]}  Ba6 {[%clk 0:02:02]} 21. Rfd1 {[%clk 0:00:54]}  Qb6 {[%clk 0:01:59]} 22. Qe3 {[%clk 0:00:42]}  Rc2 {[%clk 0:01:11]} 23. Qxb6 {[%clk 0:00:40]}  axb6 {[%clk 0:01:12]} 24. Rd6 {[%clk 0:00:27]}  Bxe2 {[%clk 0:01:05]} 25. Rxb6 {[%clk 0:00:20]}  f4 {[%clk 0:00:56]} 26. Rxe6 {[%clk 0:00:18]}  fxg3 {[%clk 0:00:56]} 27. hxg3 {[%clk 0:00:18]}  Bxf3 {[%clk 0:00:55]} 28. Bxf3 {[%clk 0:00:15]}  Rxf3 {[%clk 0:00:56]} 29. Rae1 {[%clk 0:00:11]}  Rxg3+ {[%clk 0:00:55]} 30. Kh1 {[%clk 0:00:11]}  h6 {[%clk 0:00:52]} 31. R1e2 {[%clk 0:00:09]}  Rxe2 {[%clk 0:00:47]} 32. Rxe2 {[%clk 0:00:08]}  Ra3 {[%clk 0:00:47]} 33. Kg1 {[%clk 0:00:08]}  Kh7 {[%clk 0:00:47]} 34. Kf1 {[%clk 0:00:07]}  g5 {[%clk 0:00:47]} 35. Ke1 {[%clk 0:00:06]}  Kg6 {[%clk 0:00:47]} 36. Kd1 {[%clk 0:00:07]}  g4 {[%clk 0:00:47]} 37. Kc1 {[%clk 0:00:07]}  h5 {[%clk 0:00:46]} 38. Kb2 {[%clk 0:00:08]}  Ra5 {[%clk 0:00:45]} 39. Kb3 {[%clk 0:00:07]}  g3 {[%clk 0:00:44]} 40. a4 {[%clk 0:00:07]}  h4 {[%clk 0:00:44]} 41. Kb4 {[%clk 0:00:07]}  Ra8 {[%clk 0:00:40]} 42. a5 {[%clk 0:00:05]}  Kg5 {[%clk 0:00:36]} 43. Re7 {[%clk 0:00:04]}  Rg8 {[%clk 0:00:31]} 44. a6 {[%clk 0:00:02]}  g2 {[%clk 0:00:31]} 0-1


[Site "https://www.chess.com"]

[Event "Titled Tuesday Blitz March 14 Early 2023"]
[White "Zaksaite, Salomeja"]
[Black "Hoffmann, Asa"]
[WhiteFideId "12801496"]
[BlackFideId "2001470"]
[WhiteElo "2059"]
[BlackElo "2117"]
[Result "1-0"]
[Round "06"]
[TimeControl "180+2"]
[Date "2023.03.14"]
[WhiteClock "0:00:19"]
[BlackClock "0:01:04"]

1. d4 {[%clk 0:02:57]}  Nf6 {[%clk 0:02:58]} 2. Nc3 {[%clk 0:02:57]}  d6 {[%clk 0:02:55]} 3. e4 {[%clk 0:02:56]}  c6 {[%clk 0:02:52]} 4. Nf3 {[%clk 0:02:54]}  Bg4 {[%clk 0:02:50]} 5. h3 {[%clk 0:02:52]}  Bh5 {[%clk 0:02:50]} 6. Bg5 {[%clk 0:02:31]}  Nbd7 {[%clk 0:02:44]} 7. g4 {[%clk 0:02:27]}  Bg6 {[%clk 0:02:26]} 8. Qe2 {[%clk 0:02:27]}  h5 {[%clk 0:02:20]} 9. Rg1 {[%clk 0:02:25]}  hxg4 {[%clk 0:02:19]} 10. hxg4 {[%clk 0:02:25]}  Qa5 {[%clk 0:02:18]} 11. O-O-O {[%clk 0:02:22]}  e5 {[%clk 0:02:09]} 12. dxe5 {[%clk 0:02:10]}  dxe5 {[%clk 0:02:06]} 13. Nh4 {[%clk 0:02:07]}  Bb4 {[%clk 0:02:02]} 14. Nxg6 {[%clk 0:02:05]}  fxg6 {[%clk 0:02:02]} 15. Qc4 {[%clk 0:01:52]}  O-O-O {[%clk 0:01:58]} 16. Bd2 {[%clk 0:01:37]}  Qc5 {[%clk 0:01:53]} 17. Qe2 {[%clk 0:00:25]}  Nf8 {[%clk 0:01:39]} 18. a3 {[%clk 0:00:24]}  Bxc3 {[%clk 0:01:31]} 19. Bxc3 {[%clk 0:00:23]}  Rxd1+ {[%clk 0:01:26]} 20. Kxd1 {[%clk 0:00:23]}  Ne6 {[%clk 0:01:24]} 21. Kc1 {[%clk 0:00:23]}  Nd4 {[%clk 0:01:22]} 22. Bxd4 {[%clk 0:00:22]}  Qxd4 {[%clk 0:01:21]} 23. Bg2 {[%clk 0:00:19]}  Rd8 {[%clk 0:01:17]} 24. Rd1 {[%clk 0:00:18]}  Qxd1+ {[%clk 0:01:15]} 25. Qxd1 {[%clk 0:00:19]}  Rxd1+ {[%clk 0:01:14]} 26. Kxd1 {[%clk 0:00:20]}  Nxg4 {[%clk 0:01:14]} 27. Bh3 {[%clk 0:00:18]}  Kc7 {[%clk 0:01:11]} 28. Bxg4 {[%clk 0:00:18]}  Kd6 {[%clk 0:01:10]} 29. Kd2 {[%clk 0:00:18]}  Kc5 {[%clk 0:01:10]} 30. Ke3 {[%clk 0:00:18]}  b5 {[%clk 0:01:10]} 31. f4 {[%clk 0:00:18]}  exf4+ {[%clk 0:01:08]} 32. Kxf4 {[%clk 0:00:18]}  a5 {[%clk 0:01:08]} 33. e5 {[%clk 0:00:18]}  b4 {[%clk 0:01:06]} 34. axb4+ {[%clk 0:00:17]}  axb4 {[%clk 0:01:05]} 35. e6 {[%clk 0:00:18]}  Kd6 {[%clk 0:01:05]} 36. Kg5 {[%clk 0:00:18]}  c5 {[%clk 0:01:05]} 37. Kxg6 {[%clk 0:00:18]}  Ke7 {[%clk 0:01:05]} 38. Kxg7 {[%clk 0:00:18]}  c4 {[%clk 0:01:05]} 39. Kg6 {[%clk 0:00:19]}  c3 {[%clk 0:01:04]} 40. bxc3 {[%clk 0:00:19]}  bxc3 {[%clk 0:01:04]} 41. Kf5 {[%clk 0:00:19]} 1-0


[Site "https://www.chess.com"]

[Event "Titled Tuesday Blitz March 14 Early 2023"]
[White "Martin, Lewis"]
[Black "Avazkhonov, Alikhon"]
[WhiteFideId "410551"]
[BlackFideId "14208504"]
[WhiteElo "2145"]
[BlackElo "1739"]
[Result "0-1"]
[Round "06"]
[TimeControl "180+2"]
[Date "2023.03.14"]
[WhiteClock "0:00:23"]
[BlackClock "0:02:29"]

1. e4 {[%clk 0:02:42]}  c5 {[%clk 0:02:58]} 2. Nf3 {[%clk 0:02:42]}  d6 {[%clk 0:02:58]} 3. d4 {[%clk 0:02:43]}  cxd4 {[%clk 0:02:59]} 4. Nxd4 {[%clk 0:02:42]}  Nf6 {[%clk 0:03:00]} 5. Nc3 {[%clk 0:02:42]}  a6 {[%clk 0:03:00]} 6. Bg5 {[%clk 0:02:43]}  e6 {[%clk 0:03:00]} 7. f4 {[%clk 0:02:43]}  h6 {[%clk 0:03:01]} 8. Bh4 {[%clk 0:02:42]}  Be7 {[%clk 0:03:00]} 9. Qf3 {[%clk 0:02:40]}  Nbd7 {[%clk 0:03:00]} 10. O-O-O {[%clk 0:02:38]}  Qc7 {[%clk 0:02:59]} 11. Bd3 {[%clk 0:02:31]}  g5 {[%clk 0:02:57]} 12. fxg5 {[%clk 0:02:15]}  Ne5 {[%clk 0:02:58]} 13. Qe2 {[%clk 0:02:11]}  Nfg4 {[%clk 0:02:58]} 14. Bg3 {[%clk 0:01:55]}  hxg5 {[%clk 0:02:58]} 15. h3 {[%clk 0:01:53]}  Nf6 {[%clk 0:02:58]} 16. Rhf1 {[%clk 0:01:48]}  Bd7 {[%clk 0:02:56]} 17. Kb1 {[%clk 0:01:46]}  O-O-O {[%clk 0:02:54]} 18. Nf3 {[%clk 0:01:19]}  Nh5 {[%clk 0:02:52]} 19. Bh2 {[%clk 0:01:14]}  Nf4 {[%clk 0:02:51]} 20. Qd2 {[%clk 0:01:02]}  Neg6 {[%clk 0:02:33]} 21. e5 {[%clk 0:00:46]}  dxe5 {[%clk 0:02:33]} 22. Bxg6 {[%clk 0:00:44]}  fxg6 {[%clk 0:02:31]} 23. Bxf4 {[%clk 0:00:30]}  exf4 {[%clk 0:02:29]} 24. Qe2 {[%clk 0:00:23]} 0-1


[Site "https://www.chess.com"]

[Event "Titled Tuesday Blitz March 14 Early 2023"]
[White "Fernandez Siles, Luis"]
[Black "Quirke, Jeffrey"]
[WhiteFideId "2209420"]
[BlackFideId "2013029"]
[WhiteElo "2186"]
[BlackElo "2205"]
[Result "1-0"]
[Round "06"]
[TimeControl "180+2"]
[Date "2023.03.14"]
[WhiteClock "0:00:11"]
[BlackClock "0:00:01"]

1. d4 {[%clk 0:03:00]}  Nf6 {[%clk 0:02:59]} 2. c4 {[%clk 0:02:58]}  e6 {[%clk 0:02:59]} 3. Nc3 {[%clk 0:02:58]}  Bb4 {[%clk 0:02:58]} 4. e3 {[%clk 0:02:58]}  c5 {[%clk 0:02:56]} 5. Ne2 {[%clk 0:02:57]}  cxd4 {[%clk 0:02:56]} 6. exd4 {[%clk 0:02:58]}  d5 {[%clk 0:02:53]} 7. a3 {[%clk 0:02:58]}  Bxc3+ {[%clk 0:02:53]} 8. Nxc3 {[%clk 0:02:56]}  dxc4 {[%clk 0:02:52]} 9. Bxc4 {[%clk 0:02:55]}  O-O {[%clk 0:02:53]} 10. Bg5 {[%clk 0:02:54]}  Nbd7 {[%clk 0:02:52]} 11. O-O {[%clk 0:02:49]}  b6 {[%clk 0:02:52]} 12. Qf3 {[%clk 0:02:34]}  Rb8 {[%clk 0:02:48]} 13. Ne4 {[%clk 0:02:06]}  Bb7 {[%clk 0:02:45]} 14. Bxf6 {[%clk 0:02:05]}  Nxf6 {[%clk 0:02:42]} 15. Nxf6+ {[%clk 0:02:05]}  Qxf6 {[%clk 0:02:42]} 16. Qxf6 {[%clk 0:02:03]}  gxf6 {[%clk 0:02:43]} 17. Rfd1 {[%clk 0:01:57]}  Rbc8 {[%clk 0:02:43]} 18. Bb3 {[%clk 0:01:54]}  Rfd8 {[%clk 0:02:43]} 19. f3 {[%clk 0:01:53]}  Kf8 {[%clk 0:02:43]} 20. Kf2 {[%clk 0:01:53]}  Ke7 {[%clk 0:02:43]} 21. Ke3 {[%clk 0:01:54]}  f5 {[%clk 0:02:39]} 22. g4 {[%clk 0:01:36]}  fxg4 {[%clk 0:02:00]} 23. fxg4 {[%clk 0:01:36]}  h6 {[%clk 0:02:00]} 24. Rg1 {[%clk 0:01:29]}  Bd5 {[%clk 0:01:57]} 25. Bd1 {[%clk 0:01:14]}  Rc7 {[%clk 0:01:48]} 26. Rg3 {[%clk 0:01:10]}  Kf6 {[%clk 0:01:31]} 27. Rh3 {[%clk 0:01:10]}  Kg7 {[%clk 0:01:31]} 28. Ba4 {[%clk 0:01:01]}  Rdc8 {[%clk 0:01:29]} 29. Rg1 {[%clk 0:00:57]}  Rc1 {[%clk 0:01:26]} 30. Rgg3 {[%clk 0:00:55]}  Re1+ {[%clk 0:01:24]} 31. Kd2 {[%clk 0:00:53]}  Rcc1 {[%clk 0:01:22]} 32. g5 {[%clk 0:00:52]}  hxg5 {[%clk 0:01:22]} 33. Rxg5+ {[%clk 0:00:52]}  Kf6 {[%clk 0:01:22]} 34. Rg8 {[%clk 0:00:46]}  Rg1 {[%clk 0:01:09]} 35. Rh6+ {[%clk 0:00:44]}  Ke7 {[%clk 0:01:07]} 36. Re8+ {[%clk 0:00:43]}  Kd6 {[%clk 0:01:04]} 37. Rd8+ {[%clk 0:00:42]}  Ke7 {[%clk 0:00:45]} 38. Rd7+ {[%clk 0:00:39]}  Kf8 {[%clk 0:00:45]} 39. Rh7 {[%clk 0:00:33]}  Rb1 {[%clk 0:00:33]} 40. Rd8+ {[%clk 0:00:30]}  Ke7 {[%clk 0:00:32]} 41. Re8+ {[%clk 0:00:29]}  Kd6 {[%clk 0:00:31]} 42. Rxf7 {[%clk 0:00:27]}  Rxb2+ {[%clk 0:00:29]} 43. Kc3 {[%clk 0:00:28]}  b5 {[%clk 0:00:11]} 44. Kxb2 {[%clk 0:00:24]}  bxa4 {[%clk 0:00:11]} 45. Rxa7 {[%clk 0:00:24]}  Rg2+ {[%clk 0:00:11]} 46. Kc3 {[%clk 0:00:22]}  Rxh2 {[%clk 0:00:10]} 47. Rd8+ {[%clk 0:00:20]}  Kc6 {[%clk 0:00:09]} 48. Rxa4 {[%clk 0:00:19]}  Rh3+ {[%clk 0:00:08]} 49. Kd2 {[%clk 0:00:16]}  Rh2+ {[%clk 0:00:05]} 50. Ke3 {[%clk 0:00:16]}  Rh3+ {[%clk 0:00:05]} 51. Kf2 {[%clk 0:00:16]}  Rh2+ {[%clk 0:00:05]} 52. Kg3 {[%clk 0:00:16]}  Ra2 {[%clk 0:00:04]} 53. Raa8 {[%clk 0:00:13]}  Kb5 {[%clk 0:00:03]} 54. Rdb8+ {[%clk 0:00:12]}  Kc4 {[%clk 0:00:03]} 55. Ra4+ {[%clk 0:00:12]}  Kd3 {[%clk 0:00:04]} 56. Ra5 {[%clk 0:00:11]}  Ke4 {[%clk 0:00:03]} 57. Ra4 {[%clk 0:00:11]}  Kd3 {[%clk 0:00:03]} 58. Kf4 {[%clk 0:00:11]}  Rf2+ {[%clk 0:00:02]} 59. Ke5 {[%clk 0:00:11]}  Re2+ {[%clk 0:00:02]} 60. Kd6 {[%clk 0:00:11]}  Ke4 {[%clk 0:00:02]} 61. Kc5 {[%clk 0:00:11]}  Rc2+ {[%clk 0:00:01]} 62. Kd6 {[%clk 0:00:11]} 1-0


[Site "https://www.chess.com"]

[Event "Titled Tuesday Blitz March 14 Early 2023"]
[White "Matveeva, Olga"]
[Black "Aanan, Shafiuddin"]
[WhiteFideId "24107018"]
[BlackFideId "3242633"]
[WhiteElo "2056"]
[BlackElo "1648"]
[Result "0-1"]
[Round "06"]
[TimeControl "180+2"]
[Date "2023.03.14"]
[WhiteClock "0:00:05"]
[BlackClock "0:00:14"]

1. d4 {[%clk 0:03:00]}  Nf6 {[%clk 0:02:59]} 2. c4 {[%clk 0:03:01]}  c5 {[%clk 0:02:59]} 3. d5 {[%clk 0:03:00]}  b5 {[%clk 0:02:59]} 4. cxb5 {[%clk 0:03:01]}  a6 {[%clk 0:02:58]} 5. bxa6 {[%clk 0:03:02]}  g6 {[%clk 0:02:56]} 6. Nc3 {[%clk 0:03:02]}  Bg7 {[%clk 0:02:56]} 7. g3 {[%clk 0:03:03]}  O-O {[%clk 0:02:52]} 8. Bg2 {[%clk 0:03:03]}  d6 {[%clk 0:02:52]} 9. Nf3 {[%clk 0:03:04]}  Nbd7 {[%clk 0:02:52]} 10. Rb1 {[%clk 0:03:03]}  Nb6 {[%clk 0:02:51]} 11. b3 {[%clk 0:03:01]}  Bf5 {[%clk 0:02:48]} 12. Rb2 {[%clk 0:02:54]}  Ne4 {[%clk 0:02:15]} 13. Nxe4 {[%clk 0:02:42]}  Bxb2 {[%clk 0:02:08]} 14. Bxb2 {[%clk 0:02:43]}  Bxe4 {[%clk 0:02:08]} 15. O-O {[%clk 0:02:34]}  Bxd5 {[%clk 0:02:07]} 16. Qd2 {[%clk 0:02:23]}  e5 {[%clk 0:02:04]} 17. Qh6 {[%clk 0:02:05]}  f6 {[%clk 0:02:01]} 18. h4 {[%clk 0:02:01]}  Qe7 {[%clk 0:01:59]} 19. Rd1 {[%clk 0:01:53]}  Rxa6 {[%clk 0:01:51]} 20. h5 {[%clk 0:01:22]}  g5 {[%clk 0:01:45]} 21. Nh4 {[%clk 0:00:23]}  gxh4 {[%clk 0:01:25]} 22. Rxd5 {[%clk 0:00:21]}  Rxa2 {[%clk 0:01:12]} 23. Rd2 {[%clk 0:00:18]}  Qg7 {[%clk 0:01:06]} 24. Qe3 {[%clk 0:00:17]}  hxg3 {[%clk 0:01:05]} 25. fxg3 {[%clk 0:00:16]}  Qe7 {[%clk 0:00:57]} 26. Kh2 {[%clk 0:00:16]}  Ra7 {[%clk 0:00:43]} 27. h6 {[%clk 0:00:15]}  Rd7 {[%clk 0:00:38]} 28. b4 {[%clk 0:00:14]}  Na4 {[%clk 0:00:24]} 29. Bd5+ {[%clk 0:00:13]}  Kh8 {[%clk 0:00:24]} 30. b5 {[%clk 0:00:12]}  Nxb2 {[%clk 0:00:23]} 31. Rxb2 {[%clk 0:00:12]}  f5 {[%clk 0:00:23]} 32. b6 {[%clk 0:00:12]}  f4 {[%clk 0:00:22]} 33. gxf4 {[%clk 0:00:08]}  Qh4+ {[%clk 0:00:21]} 34. Qh3 {[%clk 0:00:06]}  Qxh3+ {[%clk 0:00:20]} 35. Kxh3 {[%clk 0:00:07]}  exf4 {[%clk 0:00:19]} 36. b7 {[%clk 0:00:07]}  Rb8 {[%clk 0:00:20]} 37. Kg4 {[%clk 0:00:07]}  c4 {[%clk 0:00:17]} 38. Kxf4 {[%clk 0:00:07]}  c3 {[%clk 0:00:17]} 39. Rc2 {[%clk 0:00:07]}  Rdxb7 {[%clk 0:00:16]} 40. Bxb7 {[%clk 0:00:06]}  Rxb7 {[%clk 0:00:16]} 41. Rxc3 {[%clk 0:00:07]}  Kg8 {[%clk 0:00:16]} 42. Rc8+ {[%clk 0:00:06]}  Kf7 {[%clk 0:00:16]} 43. e4 {[%clk 0:00:04]}  Kg6 {[%clk 0:00:15]} 44. Rd8 {[%clk 0:00:04]}  Rb6 {[%clk 0:00:14]} 45. e5 {[%clk 0:00:03]}  dxe5+ {[%clk 0:00:14]} 46. Kxe5 {[%clk 0:00:04]}  Kxh6 {[%clk 0:00:14]} 47. Kf4 {[%clk 0:00:04]}  Kg6 {[%clk 0:00:13]} 48. Kg4 {[%clk 0:00:05]}  Rb4+ {[%clk 0:00:13]} 49. Kg3 {[%clk 0:00:05]}  h5 {[%clk 0:00:13]} 50. Rd6+ {[%clk 0:00:04]}  Kg5 {[%clk 0:00:13]} 51. Rd5+ {[%clk 0:00:05]}  Kg6 {[%clk 0:00:13]} 52. Rd6+ {[%clk 0:00:05]}  Kg5 {[%clk 0:00:14]} 0-1


[Site "https://www.chess.com"]

[Event "Titled Tuesday Blitz March 14 Early 2023"]
[White "Bennett, Patrick"]
[Black "Baruch, Liam"]
[WhiteFideId "1801228"]
[BlackFideId "14322064"]
[WhiteElo "2361"]
[BlackElo "2132"]
[Result "1-0"]
[Round "06"]
[TimeControl "180+2"]
[Date "2023.03.14"]
[WhiteClock "0:00:59"]
[BlackClock "0:00:03"]

1. d4 {[%clk 0:02:58]}  d5 {[%clk 0:03:00]} 2. c4 {[%clk 0:02:57]}  e6 {[%clk 0:03:00]} 3. Nc3 {[%clk 0:02:57]}  Nf6 {[%clk 0:03:01]} 4. f3 {[%clk 0:02:57]}  Bb4 {[%clk 0:02:56]} 5. Bg5 {[%clk 0:02:55]}  h6 {[%clk 0:02:55]} 6. Bh4 {[%clk 0:02:55]}  dxc4 {[%clk 0:02:49]} 7. e3 {[%clk 0:02:53]}  g5 {[%clk 0:02:44]} 8. Bf2 {[%clk 0:02:51]}  Nd5 {[%clk 0:02:38]} 9. Qc2 {[%clk 0:02:47]}  b5 {[%clk 0:02:21]} 10. e4 {[%clk 0:02:46]}  Nf4 {[%clk 0:02:04]} 11. g3 {[%clk 0:02:45]}  Ng6 {[%clk 0:01:59]} 12. Bg2 {[%clk 0:02:36]}  c6 {[%clk 0:01:55]} 13. Ne2 {[%clk 0:02:36]}  h5 {[%clk 0:01:37]} 14. O-O {[%clk 0:02:34]}  h4 {[%clk 0:01:36]} 15. Rad1 {[%clk 0:02:23]}  hxg3 {[%clk 0:01:30]} 16. Bxg3 {[%clk 0:02:21]}  Nh4 {[%clk 0:01:27]} 17. e5 {[%clk 0:02:17]}  Nxg2 {[%clk 0:01:26]} 18. Kxg2 {[%clk 0:02:18]}  Bb7 {[%clk 0:01:17]} 19. Ne4 {[%clk 0:02:15]}  Be7 {[%clk 0:00:55]} 20. N2c3 {[%clk 0:02:06]}  Nd7 {[%clk 0:00:54]} 21. Nd6+ {[%clk 0:02:00]}  Bxd6 {[%clk 0:00:54]} 22. exd6 {[%clk 0:02:00]}  c5 {[%clk 0:00:50]} 23. Nxb5 {[%clk 0:01:58]}  Rc8 {[%clk 0:00:36]} 24. Nxa7 {[%clk 0:01:57]}  g4 {[%clk 0:00:35]} 25. Nxc8 {[%clk 0:01:54]}  Bxf3+ {[%clk 0:00:31]} 26. Rxf3 {[%clk 0:01:53]}  gxf3+ {[%clk 0:00:31]} 27. Kxf3 {[%clk 0:01:52]}  Qxc8 {[%clk 0:00:32]} 28. Qxc4 {[%clk 0:01:50]}  Qa8+ {[%clk 0:00:31]} 29. Kf2 {[%clk 0:01:45]}  cxd4 {[%clk 0:00:25]} 30. Qxd4 {[%clk 0:01:39]}  Rg8 {[%clk 0:00:18]} 31. Rc1 {[%clk 0:01:33]}  f6 {[%clk 0:00:15]} 32. Qc4 {[%clk 0:01:25]}  Kf7 {[%clk 0:00:14]} 33. Re1 {[%clk 0:01:24]}  Re8 {[%clk 0:00:12]} 34. Qc7 {[%clk 0:01:18]}  Qc8 {[%clk 0:00:11]} 35. Rc1 {[%clk 0:01:15]}  Qxc7 {[%clk 0:00:10]} 36. dxc7 {[%clk 0:01:12]}  Rc8 {[%clk 0:00:10]} 37. b4 {[%clk 0:01:11]}  Nb6 {[%clk 0:00:09]} 38. b5 {[%clk 0:01:09]}  Ke7 {[%clk 0:00:09]} 39. Rc6 {[%clk 0:01:08]}  Nd5 {[%clk 0:00:08]} 40. b6 {[%clk 0:01:06]}  Kd7 {[%clk 0:00:08]} 41. b7 {[%clk 0:01:01]}  Rxc7 {[%clk 0:00:03]} 42. b8=Q {[%clk 0:00:59]} 1-0


[Site "https://www.chess.com"]

[Event "Titled Tuesday Blitz March 14 Early 2023"]
[White "Necula, Iulian"]
[Black "Liu, Casper"]
[WhiteFideId "1232380"]
[BlackFideId "1454153"]
[WhiteElo "1790"]
[BlackElo "2221"]
[Result "0-1"]
[Round "06"]
[TimeControl "180+2"]
[Date "2023.03.14"]
[WhiteClock "0:00:41"]
[BlackClock "0:01:52"]

1. d4 {[%clk 0:03:00]}  Nc6 {[%clk 0:02:57]} 2. Nc3 {[%clk 0:03:01]}  e5 {[%clk 0:02:57]} 3. d5 {[%clk 0:03:01]}  Nce7 {[%clk 0:02:57]} 4. e4 {[%clk 0:03:00]}  Ng6 {[%clk 0:02:58]} 5. Nf3 {[%clk 0:03:00]}  Bb4 {[%clk 0:02:58]} 6. Qd3 {[%clk 0:02:54]}  Nf6 {[%clk 0:02:59]} 7. Bg5 {[%clk 0:02:37]}  O-O {[%clk 0:02:56]} 8. a3 {[%clk 0:02:32]}  Bxc3+ {[%clk 0:02:56]} 9. bxc3 {[%clk 0:02:29]}  h6 {[%clk 0:02:57]} 10. Bh4 {[%clk 0:02:27]}  Nxh4 {[%clk 0:02:55]} 11. Nxh4 {[%clk 0:02:27]}  Nxd5 {[%clk 0:02:56]} 12. Qxd5 {[%clk 0:02:23]}  Qxh4 {[%clk 0:02:56]} 13. Qxe5 {[%clk 0:02:22]}  d6 {[%clk 0:02:55]} 14. Qd4 {[%clk 0:02:20]}  Re8 {[%clk 0:02:55]} 15. Bd3 {[%clk 0:02:15]}  Bf5 {[%clk 0:02:51]} 16. g3 {[%clk 0:02:11]}  Qg4 {[%clk 0:02:30]} 17. h3 {[%clk 0:02:01]}  Qf3 {[%clk 0:02:28]} 18. Kd2 {[%clk 0:01:55]}  Bxe4 {[%clk 0:02:26]} 19. Rhe1 {[%clk 0:01:46]}  Bxd3 {[%clk 0:02:26]} 20. cxd3 {[%clk 0:01:45]}  c5 {[%clk 0:02:26]} 21. Qf4 {[%clk 0:01:29]}  Qxf4+ {[%clk 0:02:26]} 22. gxf4 {[%clk 0:01:29]}  f5 {[%clk 0:02:27]} 23. Re3 {[%clk 0:01:20]}  Kf7 {[%clk 0:02:26]} 24. Rae1 {[%clk 0:01:20]}  b6 {[%clk 0:02:19]} 25. a4 {[%clk 0:01:18]}  g5 {[%clk 0:02:05]} 26. fxg5 {[%clk 0:01:17]}  hxg5 {[%clk 0:02:06]} 27. a5 {[%clk 0:01:14]}  bxa5 {[%clk 0:02:04]} 28. Rxe8 {[%clk 0:01:12]}  Rxe8 {[%clk 0:02:03]} 29. Ra1 {[%clk 0:01:13]}  Rh8 {[%clk 0:02:00]} 30. Rxa5 {[%clk 0:01:11]}  Rxh3 {[%clk 0:02:01]} 31. Rxa7+ {[%clk 0:01:11]}  Ke6 {[%clk 0:02:00]} 32. Rg7 {[%clk 0:01:10]}  g4 {[%clk 0:02:01]} 33. Rg6+ {[%clk 0:01:10]}  Ke5 {[%clk 0:01:57]} 34. d4+ {[%clk 0:01:07]}  cxd4 {[%clk 0:01:56]} 35. cxd4+ {[%clk 0:01:08]}  Kd5 {[%clk 0:01:56]} 36. Rg5 {[%clk 0:01:04]}  Rf3 {[%clk 0:01:55]} 37. Ke2 {[%clk 0:01:03]}  Kxd4 {[%clk 0:01:55]} 38. Rg8 {[%clk 0:00:59]}  d5 {[%clk 0:01:55]} 39. Ra8 {[%clk 0:00:58]}  Rc3 {[%clk 0:01:52]} 40. Ra4+ {[%clk 0:00:53]}  Rc4 {[%clk 0:01:53]} 41. Ra2 {[%clk 0:00:53]}  Ke4 {[%clk 0:01:52]} 42. Rd2 {[%clk 0:00:52]}  d4 {[%clk 0:01:52]} 43. Rd3 {[%clk 0:00:41]}  Rc2+ {[%clk 0:01:52]} 0-1


[Site "https://www.chess.com"]